bitfinex-derivatives/quotes_SOLF0:USTF0_20250310
["timestamp","ask_amount","ask_price","bid_price","bid_amount"]
[1741611757000,0.05308355,129.52,129.5,32.516]
[1741611757302,41.7416669,129.58,129.5,32.516]
[1741611757501,72.1616669,129.58,129.5,32.516]
[1741611757804,7.7175,129.56,129.52,7.7196]
[1741611758301,0.05255279,129.55,129.53,0.05510904]
[1741611759300,7.7186,129.54,129.53,0.05510904]
[1741611759499,30.45255279,129.55,129.45,34.87455132]
[1741611759694,7.7195,129.53,129.45,34.87455132]
[1741611760001,30.4,129.55,129.45,34.87455132]
[1741611760201,2.0805,129.54,129.45,3.9904]
[1741611760601,0.04937804,129.51,129.48,0.048891]
[1741611762903,0.04937804,129.51,129.48,7.770591]
[1741611763097,0.04937804,129.51,129.48,0.048891]
[1741611763704,7.77007804,129.51,129.48,0.048891]
[1741611764005,0.04937804,129.51,129.49,7.7213]
[1741611764507,0.04937804,129.51,129.48,0.048891]
[1741611764904,7.7216,129.49,129.48,0.048891]
[1741611766199,7.7239,129.46,129.43,7.7249]
[1741611766403,30.4,129.49,129.41,6.165]
[1741611766601,61.28415132,129.49,129.41,11.8534]
[1741611766902,30.88415132,129.47,129.38,49.05394406]
[1741611767100,34.5135,129.46,129.4,7.7268]
[1741611767296,34.5135,129.46,129.38,49.05394406]
[1741611767495,0.04987394,129.44,129.42,0.05305819]
[1741611767702,30.4,129.43,129.38,18.65394406]
[1741611768005,7.7261,129.42,129.38,18.65394406]
[1741611768508,30.4,129.43,129.38,18.65394406]
[1741611769103,0.05791936,129.42,129.39,0.05523893]
[1741611769603,0.05791936,129.42,129.4,7.727]
[1741611770503,0.05791936,129.42,129.39,7.78233893]
[1741611770705,0.05791936,129.42,129.39,0.05523893]
[1741611771303,0.05791936,129.42,129.39,7.78283893]
[1741611772009,0.05791936,129.42,129.39,0.05523893]
[1741611772608,7.78411936,129.42,129.39,0.05523893]
[1741611773318,0.05791936,129.42,129.4,7.7269]
[1741611773712,0.05791936,129.42,129.39,0.05523893]
[1741611775020,7.727,129.4,129.39,0.05523893]
[1741611775317,38.127,129.4,129.39,0.05523893]
[1741611777324,7.7288,129.37,129.34,7.7303]
[1741611777523,38.1288,129.37,129.34,7.7303]
[1741611777924,38.1288,129.37,129.31,62.0]
[1741611777925,30.4,129.37,129.32,7.7313]
[1741611778423,7.7301,129.35,129.33,0.05281549]
[1741611778730,0.05233009,129.36,129.33,7.78391549]
[1741611779124,0.05233009,129.36,129.33,0.05281549]
[1741611779331,0.05233009,129.36,129.33,7.78391549]
[1741611780318,7.7301,129.35,129.33,0.05281549]
[1741611781625,7.7301,129.35,129.33,7.78391549]
[1741611782027,7.7301,129.35,129.33,0.05281549]
[1741611782226,7.7301,129.35,129.33,7.78401549]
[1741611782426,0.05233009,129.36,129.33,0.05281549]
[1741611783227,0.05233009,129.36,129.35,7.73]
[1741611784930,0.05233009,129.36,129.34,7.7303]
[1741611785130,0.05233009,129.36,129.33,0.05281549]
[1741611786026,6.15633009,129.36,129.33,0.05281549]
[1741611786230,0.05233009,129.36,129.33,0.05281549]
[1741611786926,7.7306,129.34,129.33,0.05281549]
[1741611787130,38.1506,129.34,129.33,0.05281549]
[1741611787533,30.42,129.34,129.28,7.7339]
[1741611787726,30.42,129.34,129.25,254.9]
[1741611787727,61.30415132,129.34,129.25,254.9]
[1741611788129,63.33635132,129.34,129.27,7.7345]
[1741611788344,63.33635132,129.34,129.25,254.9]
[1741611788733,0.05845694,129.31,129.25,254.9]
[1741611789029,30.42,129.3,129.25,254.9]
[1741611789627,30.42,129.3,129.25,316.9]
[1741611789826,30.42,129.3,129.25,254.9]
[1741611790030,38.1531,129.3,129.27,7.7344]
[1741611790237,30.42,129.3,129.24,6.2111]
[1741611790624,30.42,129.3,129.22,85.96631015]
[1741611790625,0.05803756,129.28,129.22,85.96631015]
[1741611790830,30.42,129.27,129.22,85.96631015]
[1741611791031,30.42,129.27,129.24,7.7362]
[1741611791229,30.42,129.27,129.22,85.96631015]
[1741611792532,30.42,129.27,129.2,4.21]
[1741611792734,30.42,129.27,129.24,7.7361]
[1741611793031,0.05893516,129.25,129.2,4.21]
[1741611793228,0.05893516,129.25,129.24,7.7366]
[1741611796940,0.05893516,129.25,129.23,7.7369]
[1741611797346,0.05893516,129.25,129.21,7.7381]
[1741611797542,30.42,129.24,129.19,1.9868]
[1741611797849,30.42,129.24,129.19,7.7393]
[1741611798250,7.7378,129.22,129.17,4.0155]
[1741611798446,30.42,129.21,129.17,4.0155]
[1741611798751,38.20857437,129.21,129.17,4.0155]
[1741611798941,30.46987437,129.21,129.17,4.0155]
[1741611799346,38.20867437,129.21,129.17,4.0155]
[1741611799651,30.46987437,129.21,129.14,2.0122]
[1741611799951,7.7395,129.2,129.16,7.7409]
[1741611800249,7.7395,129.2,129.14,2.0122]
[1741611800250,30.46987437,129.21,129.14,2.0122]
[1741611800447,30.42,129.21,129.2,7.739]
[1741611800635,0.05516162,129.19,129.15,62.0]
[1741611800835,30.42,129.21,129.2,7.739]
[1741611801947,30.42,129.21,129.15,62.0]
[1741611802442,0.05145471,129.19,129.15,62.0]
[1741611802642,0.05145471,129.19,129.18,7.7402]
[1741611804252,30.42,129.21,129.16,30.42]
[1741611804443,30.42,129.21,129.2,7.739]
[1741611804648,30.42,129.24,129.16,61.30415132]
[1741611804951,30.42,129.24,129.16,30.42]
[1741611805450,7.79687836,129.21,129.19,0.05054735]
[1741611805653,30.47817836,129.21,129.19,0.05054735]
[1741611805846,7.739,129.2,129.19,0.05054735]
[1741611807344,30.47817836,129.21,129.15,7.7419]
[1741611807549,30.47817836,129.21,129.13,255.12]
[1741611807747,30.42,129.21,129.13,255.12]
[1741611807948,7.7393,129.2,129.13,255.12]
[1741611808149,30.42,129.21,129.13,255.12]
[1741611808548,0.051319,129.18,129.13,255.12]
[1741611808947,0.051319,129.18,129.17,7.7408]
[1741611814057,30.44,129.23,129.15,30.44]
[1741611814756,30.44,129.23,129.15,61.32415132]
[1741611815255,7.7357,129.26,129.18,0.05953588]
[1741611815462,30.42,129.25,129.16,1.40872003]
[1741611815754,7.7376,129.23,129.2,7.7386]
[1741611815958,30.42,129.25,129.15,61.32415132]
[1741611816160,30.42,129.25,129.16,1.40875956]
[1741611816365,30.88415132,129.28,129.17,30.88415132]
[1741611816554,0.05936943,129.22,129.19,0.05200512]
[1741611816754,30.88415132,129.28,129.18,32.4158]
[1741611816962,0.05742509,129.21,129.19,0.05062068]
[1741611817160,0.05742509,129.21,129.18,32.4158]
[1741611817364,30.42,129.24,129.18,1.9958]
[1741611817555,0.05429789,129.21,129.18,2.0541907]
[1741611817751,0.05429789,129.21,129.2,0.05227396]
[1741611817955,0.05429789,129.21,129.2,7.79127396]
[1741611818465,7.79269789,129.21,129.2,0.05227396]
[1741611818662,38.21269789,129.21,129.2,0.05227396]
[1741611819666,30.47429789,129.21,129.16,7.7411]
[1741611820166,7.7401,129.19,129.16,7.7411]
[1741611820369,30.47429789,129.21,129.17,7.7407]
[1741611820568,30.42,129.21,129.15,0.0516634]
[1741611820764,0.05810917,129.2,129.14,64.0281]
[1741611820962,0.05810917,129.2,129.18,7.7398]
[1741611822867,0.05810917,129.2,129.17,0.04875418]
[1741611823169,0.05810917,129.2,129.18,7.7398]
[1741611824072,0.05810917,129.2,129.19,7.7396]
[1741611825365,0.05810917,129.2,129.18,7.7398]
[1741611825569,0.05810917,129.2,129.17,0.04875418]
[1741611826659,0.05810917,129.2,129.17,7.78925418]
[1741611827174,0.05810917,129.2,129.18,7.7402]
[1741611827571,0.05810917,129.2,129.17,0.04875418]
[1741611827964,7.79730917,129.2,129.17,7.78895418]
[1741611828166,7.79730917,129.2,129.17,0.04875418]
[1741611828466,0.05810917,129.2,129.17,0.04875418]
[1741611828673,7.7396,129.19,129.17,0.04875418]
[1741611828869,7.7396,129.19,129.17,7.78935418]
[1741611829064,7.7396,129.19,129.17,0.04875418]
[1741611829270,7.7402,129.18,129.17,0.04875418]
[1741611829572,38.1602,129.18,129.17,0.04875418]
[1741611831967,30.42,129.18,129.17,0.04875418]
[1741611832177,30.42,129.18,129.17,7.78955418]
[1741611832471,30.42,129.18,129.17,0.04875418]
[1741611833286,30.42,129.18,129.17,7.78955418]
[1741611833783,30.42,129.18,129.17,0.04875418]
[1741611834982,0.05810917,129.2,129.17,0.04875418]
[1741611835387,7.79740917,129.2,129.18,7.7398]
[1741611835785,0.05810917,129.2,129.17,0.04875418]
[1741611836389,7.7427,129.14,129.11,7.744]
[1741611836885,19.40505082,129.16,129.08,56.05665082]
[1741611837287,19.40505082,129.14,129.08,6.2316]
[1741611837481,7.7443,129.12,129.11,0.02197565]
[1741611837686,0.04931669,129.13,129.11,0.02197565]
[1741611839585,0.04931669,129.13,129.12,7.7438]
[1741611839785,0.04931669,129.13,129.11,0.02197565]
[1741611840189,0.04931669,129.13,129.11,7.76587565]
[1741611840589,0.04931669,129.13,129.11,0.02197565]
[1741611840785,7.79251669,129.13,129.11,0.02197565]
[1741611841384,7.7438,129.12,129.11,0.02197565]
[1741611841788,0.04931669,129.13,129.11,0.02197565]
[1741611842494,0.04931669,129.13,129.11,7.76597565]
[1741611842893,0.04931669,129.13,129.11,0.02197565]
[1741611843088,0.04931669,129.13,129.12,7.7438]
[1741611843291,0.04931669,129.13,129.11,0.02197565]
[1741611843488,0.04931669,129.13,129.11,7.76597565]
[1741611844090,0.04931669,129.13,129.12,7.7438]
[1741611845287,0.04931669,129.13,129.11,0.02197565]
[1741611846784,7.79301669,129.13,129.11,0.02197565]
[1741611846988,0.04931669,129.13,129.11,0.02197565]
[1741611847693,0.04931669,129.13,129.07,255.34]
[1741611847888,0.04931669,129.13,129.05,18.77736781]
[1741611848087,7.7453,129.1,129.07,7.7465]
[1741611848291,30.42,129.1,129.05,18.77736781]
[1741611848700,49.82505082,129.1,129.05,26.52516781]
[1741611848892,19.40505082,129.08,129.05,18.77736781]
[1741611849197,30.42,129.07,129.05,18.77736781]
[1741611849397,19.40505082,129.06,129.04,29.95581208]
[1741611849801,7.7486,129.04,129.02,129.08300691]
[1741611849996,30.42,129.04,129.02,129.08300691]
[1741611850295,49.82505082,129.04,129.02,119.42750691]
[1741611850798,0.05656931,129.06,129.02,119.42750691]
[1741611850996,0.05656931,129.06,129.04,7.7484]
[1741611851190,0.05656931,129.06,129.02,119.42750691]
[1741611852102,19.46162013,129.06,129.02,119.42750691]
[1741611852298,0.05656931,129.06,129.02,119.42750691]
[1741611852596,0.05656931,129.06,129.03,7.7491]
[1741611852791,0.05656931,129.06,129.02,119.42750691]
[1741611853097,0.05656931,129.06,129.03,7.7487]
[1741611853302,0.05656931,129.06,129.02,119.42750691]
[1741611854203,0.05656931,129.06,129.04,7.7481]
[1741611854697,0.05656931,129.06,129.0,21.45155082]
[1741611855804,0.05656931,129.06,129.03,7.7492]
[1741611856104,7.80436931,129.06,129.01,62.0]
[1741611856306,0.05656931,129.06,129.01,62.0]
[1741611856505,0.05656931,129.06,129.0,2.0465]
[1741611857101,0.05656931,129.06,129.03,7.7487]
[1741611857810,0.05656931,129.06,129.0,2.0465]
[1741611858009,19.40505082,129.05,129.0,2.0465]
[1741611858304,30.42,129.04,129.0,7.7507]
[1741611858504,19.40505082,129.03,128.98,2.0453]
[1741611858800,19.40505082,128.99,128.89,229.55473562]
[1741611859005,7.7531,128.97,128.9,7.54224297]
[1741611859209,0.05923386,128.95,128.94,7.7542]
[1741611859703,0.05923386,128.95,128.9,6.1308]
[1741611860305,30.47923386,128.95,128.9,6.1308]
[1741611862508,7.7555,128.93,128.9,6.1308]
[1741611862708,30.47923386,128.95,128.9,6.1308]
[1741611862904,30.47923386,128.95,128.9,4.0589]
[1741611863407,30.47923386,128.95,128.91,19.40505082]
[1741611863807,30.47923386,128.95,128.94,7.7546]
[1741611864110,30.47923386,128.95,128.9,4.0589]
[1741611864808,30.47923386,128.95,128.92,7.7553]
[1741611865308,38.23353386,128.95,128.89,3.8966]
[1741611865508,30.47923386,128.95,128.89,3.8966]
[1741611865707,19.40505082,128.94,128.89,3.8966]
[1741611865907,7.7556,128.93,128.89,3.8966]
[1741611866098,30.44,128.92,128.89,3.8966]
[1741611866297,30.48980934,128.92,128.89,3.8966]
[1741611866809,30.48980934,128.92,128.86,2.0393]
[1741611867312,7.7573,128.9,128.87,7.7587]
[1741611867509,30.44,128.89,128.87,7.7587]
[1741611868008,30.48896964,128.89,128.87,7.7587]
[1741611868406,30.48896964,128.89,128.86,2.0393]
[1741611868607,30.48896964,128.89,128.87,7.7584]
[1741611868808,30.48896964,128.89,128.86,2.0393]
[1741611869008,30.48896964,128.89,128.88,7.7582]
[1741611869009,0.04896964,128.89,128.88,7.7582]
[1741611869211,31.1930696,128.97,128.87,30.44]
[1741611869405,30.44,128.96,128.88,31.1930696]
[1741611870311,30.44,128.96,128.93,7.755]
[1741611870514,0.05073454,128.93,128.91,0.04896964]
[1741611870709,30.44,128.97,128.95,7.7536]
[1741611870904,30.44,128.98,128.9,30.44]
[1741611871214,61.6330696,128.98,128.91,7.7562]
[1741611871407,7.7543,128.95,128.87,2.1383]
[1741611871608,30.44,128.94,128.87,2.1383]
[1741611871809,0.05580593,128.92,128.9,7.80593701]
[1741611872418,0.05580593,128.92,128.9,0.04903701]
[1741611872910,0.05580593,128.92,128.9,7.80593701]
[1741611873312,0.05580593,128.92,128.9,0.04903701]
[1741611874113,7.7564,128.91,128.9,0.04903701]
[1741611874306,38.1964,128.91,128.9,0.04903701]
[1741611876713,30.44,128.91,128.9,0.04903701]
[1741611877110,0.05580593,128.92,128.9,0.04903701]
[1741611877711,7.81180593,128.92,128.9,0.04903701]
[1741611878613,7.81180593,128.92,128.89,7.7573]
[1741611878810,7.81180593,128.92,128.87,2.1383]
[1741611879518,7.81180593,128.92,128.89,7.7572]
[1741611879720,0.05580593,128.92,128.88,0.05066717]
[1741611880222,0.05580593,128.92,128.89,7.7571]
[1741611880417,7.81170593,128.92,128.89,7.7571]
[1741611880612,7.81170593,128.92,128.88,0.05066717]
[1741611880613,0.05580593,128.92,128.88,0.05066717]
[1741611880924,7.7535,128.96,128.89,30.44]
[1741611881221,7.7535,128.96,128.93,7.755]
[1741611882026,7.80588427,128.96,128.93,7.81392818]
[1741611882519,0.05238427,128.96,128.93,0.05892818]
[1741611883219,7.80608427,128.96,128.93,7.81382818]
[1741611883420,0.05238427,128.96,128.93,0.05892818]
[1741611884023,7.7543,128.95,128.93,0.05892818]
[1741611884324,0.05238427,128.96,128.93,0.05892818]
[1741611884625,7.7546,128.94,128.93,0.05892818]
[1741611885318,38.9476696,128.94,128.93,0.05892818]
[1741611885823,38.9476696,128.94,128.87,2.1383]
[1741611885824,31.1930696,128.94,128.87,2.1383]
[1741611886023,7.7577,128.89,128.85,2.0017]
[1741611886224,7.7577,128.89,128.86,7.7591]
[1741611886525,61.6330696,128.9,128.83,2.0829]
[1741611886726,61.6330696,128.9,128.83,9.8438]
[1741611887127,7.7598,128.86,128.85,0.04754492]
[1741611887322,38.1998,128.86,128.85,0.04754492]
[1741611888325,30.44,128.86,128.85,0.04754492]
[1741611890035,30.44,128.86,128.85,7.80754492]
[1741611890227,0.05801157,128.88,128.85,0.04754492]
[1741611890930,7.81651157,128.88,128.85,0.04754492]
[1741611892238,30.44,128.87,128.85,0.04754492]
[1741611894138,38.1988,128.87,128.85,0.04754492]
[1741611894637,0.05801157,128.88,128.85,0.04754492]
[1741611895245,0.05801157,128.88,128.87,7.7588]
[1741611895933,10.5980951,128.9,128.89,7.7576]
[1741611896440,10.5980951,128.91,128.86,35.2544696]
[1741611896648,4.1534951,128.91,128.9,7.757]
[1741611896851,31.79428531,128.92,128.88,61.6330696]
[1741611897144,31.85347409,128.92,128.91,7.7564]
[1741611897549,31.85347409,128.92,128.89,0.0522669]
[1741611898151,39.60947409,128.92,128.89,0.0522669]
[1741611898448,62.29347409,128.92,128.89,0.0522669]
[1741611898955,7.7567,128.91,128.89,0.0522669]
[1741611899249,30.49918878,128.92,128.89,0.0522669]
[1741611899545,7.757,128.9,128.89,0.0522669]
[1741611899943,30.49918878,128.92,128.89,0.0522669]
[1741611900144,7.757,128.9,128.89,0.0522669]
[1741611900456,61.69225838,128.92,128.82,30.44]
[1741611900654,7.7591,128.87,128.84,7.7602]
[1741611900858,30.44,128.89,128.81,62.0]
[1741611901052,30.44,128.88,128.81,62.0]
[1741611901445,0.05569787,128.86,128.83,0.05328959]
[1741611901844,0.05569787,128.86,128.85,7.76]
[1741611905347,0.05569787,128.86,128.84,7.7603]
[1741611905548,0.05569787,128.86,128.83,2.19918959]
[1741611906049,0.05569787,128.86,128.84,7.7606]
[1741611906245,0.05569787,128.86,128.83,0.05328959]
[1741611907248,0.05569787,128.86,128.84,7.7603]
[1741611907953,0.05569787,128.86,128.85,7.76]
[1741611910061,19.56260856,128.86,128.83,0.05328959]
[1741611910251,19.56260856,128.86,128.81,7.7621]
[1741611910252,30.44,128.85,128.81,7.7621]
[1741611910554,30.44,128.85,128.82,7.7613]
[1741611911254,38.2003,128.85,128.8,2.0361]
[1741611911456,30.49462228,128.85,128.8,2.0361]
[1741611912360,0.05462228,128.85,128.8,21.54301069]
[1741611912859,0.05462228,128.85,128.84,7.7606]
[1741611915055,7.7572,128.9,128.82,49.94691069]
[1741611915251,30.44,128.93,128.84,19.50691069]
[1741611915561,30.44,128.93,128.88,7.7579]
[1741611915859,19.50691069,128.94,128.86,19.50691069]
[1741611916063,23.27321069,128.96,128.86,19.50691069]
[1741611916361,0.05009513,128.91,128.89,0.05462228]
[1741611916555,19.50691069,128.94,128.89,0.05462228]
[1741611916757,7.80949461,128.91,128.89,0.05462228]
[1741611916955,0.05279461,128.91,128.89,0.05462228]
[1741611917157,0.05279461,128.91,128.9,7.757]
[1741611917370,0.05279461,128.91,128.89,0.05462228]
[1741611918258,0.05279461,128.91,128.9,7.757]
[1741611919764,0.05279461,128.91,128.89,7.81192228]
[1741611920266,0.05279461,128.91,128.9,7.757]
[1741611920763,19.50691069,128.98,128.89,0.05462228]
[1741611920961,61.15837861,129.0,128.92,19.50691069]
[1741611920962,30.42,128.99,128.92,19.50691069]
[1741611922059,0.05766502,128.97,128.94,0.05072251]
[1741611922764,0.05766502,128.97,128.96,7.7534]
[1741611924066,61.15837861,129.0,128.98,7.7516]
[1741611924663,61.15837861,129.0,128.97,7.7525]
[1741611924860,84.78476083,129.01,128.97,7.7525]
[1741611924861,7.7507,129.01,128.97,7.7525]
[1741611925163,0.0587105,129.0,128.97,0.05353631]
[1741611925357,0.0587105,129.0,128.97,7.80613631]
[1741611926166,0.0587105,129.0,128.98,7.7521]
[1741611926365,0.0587105,129.0,128.97,30.47353631]
[1741611926867,49.92691069,129.06,129.0,7.7505]
[1741611927065,49.92691069,129.06,128.98,19.50691069]
[1741611927258,19.50691069,129.04,128.97,30.42]
[1741611927464,7.7508,129.01,128.97,38.1725]
[1741611927762,49.92691069,129.02,128.95,4.0744]
[1741611927963,0.04930976,129.0,128.98,0.05130556]
[1741611929868,0.04930976,129.0,128.99,7.7516]
[1741611931571,0.04930976,129.0,128.98,7.80320556]
[1741611931763,0.04930976,129.0,128.98,0.05130556]
[1741611932171,30.4,129.05,128.98,19.55821625]
[1741611932667,38.1484,129.05,128.98,19.55821625]
[1741611933063,7.7484,129.05,128.99,2.0637]
[1741611933258,0.05937289,129.03,128.99,2.0637]
[1741611933466,0.05937289,129.03,129.01,0.05170847]
[1741611934373,0.05937289,129.03,129.02,7.7494]
[1741611937270,19.50691069,129.1,129.01,0.05170847]
[1741611937573,7.7458,129.09,129.02,19.50691069]
[1741611937765,19.50691069,129.1,129.03,30.4]
[1741611937966,19.50691069,129.08,129.01,2.0707]
[1741611938171,7.748,129.05,129.01,2.0707]
[1741611938372,0.05819025,129.06,129.04,7.7481]
[1741611938570,0.05819025,129.06,129.03,0.05123376]
[1741611938770,19.56510094,129.06,129.03,0.05123376]
[1741611939373,7.7486,129.04,129.03,0.05123376]
[1741611939668,0.05819025,129.06,129.03,0.05123376]
[1741611940471,0.05819025,129.06,129.03,7.80003376]
[1741611940676,0.05819025,129.06,129.03,0.05123376]
[1741611941673,0.05819025,129.06,129.04,7.7482]
[1741611942774,0.05819025,129.06,129.03,0.05123376]
[1741611943478,7.748,129.05,129.03,0.05123376]
[1741611943674,0.05819025,129.06,129.03,0.05123376]
[1741611943970,7.80569025,129.06,129.03,0.05123376]
[1741611944177,0.05819025,129.06,129.03,0.05123376]
[1741611945168,7.80579025,129.06,129.03,7.79993376]
[1741611945569,7.80579025,129.06,129.03,0.05123376]
[1741611945570,0.05819025,129.06,129.03,0.05123376]
[1741611945769,0.05819025,129.06,129.03,2.05413376]
[1741611945980,0.05819025,129.06,129.04,7.7486]
[1741611946674,0.05819025,129.06,129.03,2.05413376]
[1741611947271,0.05819025,129.06,129.05,7.748]
[1741611948471,3.9453,129.11,129.03,2.05413376]
[1741611948676,7.7458,129.09,129.06,7.7468]
[1741611949178,7.7458,129.09,129.04,81.50691069]
[1741611949378,1.9747,129.11,129.07,7.7467]
[1741611949677,0.05953041,129.1,129.08,0.05492993]
[1741611949873,7.80483041,129.1,129.08,0.05492993]
[1741611950271,0.05953041,129.1,129.08,0.05492993]
[1741611950471,7.7456,129.09,129.08,0.05492993]
[1741611951977,38.1056,129.09,129.08,0.05492993]
[1741611952175,30.36,129.09,129.03,2.0029]
[1741611952373,30.36,129.09,128.99,64.0637]
[1741611952374,19.50691069,129.08,128.99,64.0637]
[1741611952573,19.50691069,129.06,128.99,2.0637]
[1741611952879,19.50691069,129.06,129.0,7.7507]
[1741611952880,30.36,129.05,129.0,7.7507]
[1741611953284,7.7492,129.03,129.01,0.04977165]
[1741611953585,0.05598497,129.04,129.01,7.79987165]
[1741611953886,7.7498,129.02,129.01,0.04977165]
[1741611955782,38.1098,129.02,129.01,0.04977165]
[1741611956084,7.7516,129.0,128.96,255.82]
[1741611956475,30.36,129.02,128.95,4.0355]
[1741611956779,30.36,129.02,128.86,269.0]
[1741611956780,19.50691069,128.97,128.87,285.98]
[1741611957084,19.50691069,128.95,128.87,261.569]
[1741611957286,7.7556,128.93,128.91,0.05315623]
[1741611957581,0.05289978,128.94,128.91,0.05315623]
[1741611958285,49.86691069,128.93,128.87,255.62]
[1741611958477,49.86691069,128.93,128.84,19.50691069]
[1741611958679,19.50691069,128.91,128.84,7.7604]
[1741611958981,30.36,128.9,128.84,7.7604]
[1741611959378,7.7578,128.89,128.84,7.7604]
[1741611959579,0.05461426,128.88,128.86,0.05445339]
[1741611959978,0.05461426,128.88,128.81,255.66]
[1741611959979,30.38,128.87,128.81,255.66]
[1741611960586,38.1392,128.87,128.81,263.422]
[1741611961083,0.05255417,128.85,128.83,0.05752715]
[1741611961579,30.38,128.84,128.76,61.60430895]
[1741611961985,30.38,128.84,128.78,31.22430895]
[1741611962182,30.38,128.84,128.76,31.22430895]
[1741611962384,38.1407,128.84,128.75,286.14]
[1741611962591,30.38,128.84,128.75,286.14]
[1741611962881,0.05205422,128.81,128.78,31.27987349]
[1741611963283,0.05205422,128.81,128.8,7.763]
[1741611963682,30.38,128.87,128.8,31.22430895]
[1741611963882,31.22430895,128.86,128.79,2.0818]
[1741611964187,31.22430895,128.84,128.76,62.0]
[1741611964384,31.12,128.83,128.76,62.0]
[1741611964583,31.18,128.84,128.76,62.0]
[1741611964991,0.05651235,128.81,128.79,0.04929772]
[1741611965189,31.29651235,128.81,128.79,0.04929772]
[1741611965990,39.05901235,128.81,128.79,0.04929772]
[1741611966289,31.29651235,128.81,128.79,0.04929772]
[1741611966491,7.763,128.8,128.79,0.04929772]
[1741611966994,31.29651235,128.81,128.79,0.04929772]
[1741611967990,7.763,128.8,128.79,0.04929772]
[1741611968587,7.7653,128.77,128.7,2.0934]
[1741611968794,39.0453,128.77,128.7,2.0934]
[1741611968980,31.28,128.77,128.7,2.0934]
[1741611969187,7.7658,128.76,128.72,7.7674]
[1741611969381,31.28,128.77,128.7,2.0934]
[1741611969582,7.7667,128.74,128.7,7.7687]
[1741611969785,0.05384459,128.75,128.72,0.0515728]
[1741611970193,7.82034459,128.75,128.72,0.0515728]
[1741611970888,0.05384459,128.75,128.72,0.0515728]
[1741611971291,0.05384459,128.75,128.74,7.7666]
[1741611972092,0.05384459,128.75,128.73,7.767]
[1741611973087,0.05384459,128.75,128.72,0.0515728]
[1741611973088,0.05384459,128.75,128.74,7.7666]
[1741611973893,0.05384459,128.75,128.72,0.0515728]
[1741611974285,0.05384459,128.75,128.74,7.7666]
[1741611975199,0.05384459,128.75,128.73,7.7667]
[1741611975390,0.05384459,128.75,128.72,0.0515728]
[1741611975696,0.05384459,128.75,128.73,7.7669]
[1741611975899,0.05384459,128.75,128.72,0.0515728]
[1741611976396,0.05384459,128.75,128.73,7.7672]
[1741611977192,0.05384459,128.75,128.74,7.7666]
[1741611977495,0.05384459,128.75,128.72,0.0515728]
[1741611978398,7.7672,128.73,128.72,0.0515728]
[1741611978598,31.1,128.73,128.69,7.7693]
[1741611978997,31.1,128.73,128.7,7.769]
[1741611979198,31.1,128.73,128.65,35.17620895]
[1741611979499,31.1,128.73,128.66,1.41429648]
[1741611979701,31.1,128.73,128.7,7.7685]
[1741611979904,0.04923209,128.71,128.7,7.7685]
[1741611980290,3.209e-05,128.71,128.7,7.7685]
[1741611980497,31.12,128.76,128.69,2.0882]
[1741611980889,31.12,128.76,128.72,7.7674]
[1741611981092,31.12,128.76,128.69,2.0882]
[1741611981399,7.7667,128.74,128.69,2.0882]
[1741611981599,0.05144766,128.74,128.71,0.04918359]
[1741611981796,31.18,128.73,128.71,0.04918359]
[1741611981997,31.18,128.73,128.72,7.7678]
[1741611982815,0.05144766,128.74,128.73,7.7672]
[1741611983097,33.2658,128.8,128.73,19.54615855]
[1741611983797,33.2658,128.8,128.72,2.0913]
[1741611984096,0.05297294,128.77,128.75,0.05116384]
[1741611985401,0.05297294,128.77,128.76,7.7654]
[1741611986296,0.05297294,128.77,128.75,7.81686384]
[1741611986502,7.7654,128.76,128.75,0.05116384]
[1741611986696,0.05297294,128.77,128.75,0.05116384]
[1741611987295,0.05297294,128.77,128.75,7.81676384]
[1741611987494,7.7654,128.76,128.75,0.05116384]
[1741611988201,31.25297294,128.77,128.68,2.0072]
[1741611988202,62.51272108,128.77,128.68,2.0072]
[1741611988405,7.7676,128.73,128.69,263.9493]
[1741611988598,31.18,128.74,128.69,263.9493]
[1741611988802,7.7675,128.73,128.69,256.18]
[1741611988996,7.7675,128.73,128.7,7.769]
[1741611989197,31.18,128.74,128.7,7.769]
[1741611989399,7.82160798,128.73,128.71,0.05528531]